bitfinex-derivatives/quotes_ETHF0:USTF0_20250329
["timestamp","ask_amount","ask_price","bid_price","bid_amount"]
[1743244509011,3.33809,1875.5,1875.4,1.67400483]
[1743244509613,2.2712,1875.5,1875.4,2.74095483]
[1743244510114,2.2712,1875.5,1875.4,2.54025]
[1743244510315,3.33809,1875.5,1875.4,1.4733]
[1743244510917,2.2712,1875.5,1875.4,2.54025]
[1743244511517,3.33809,1875.5,1875.4,1.4733]
[1743244511723,3.33809,1875.5,1875.3,5.68087]
[1743244511910,1.4421,1875.4,1875.3,5.68087]
[1743244512113,1.4421,1875.4,1875.3,4.6139]
[1743244512320,1.4421,1875.4,1875.3,6.19924979]
[1743244512821,1.4421,1875.4,1875.3,5.6809]
[1743244513410,1.4421,1875.4,1875.3,4.6139]
[1743244513615,1.4421,1875.4,1875.3,6.19919316]
[1743244514428,1.4421,1875.4,1875.3,6.19907187]
[1743244515522,1.4421,1875.4,1875.3,7.02924348]
[1743244515720,0.00800064,1875.7,1875.6,1.06683]
[1743244515919,1.35660064,1875.7,1875.6,1.06683]
[1743244516121,1.35660064,1875.7,1875.6,2.42023]
[1743244516517,0.00800064,1875.7,1875.6,2.93914856]
[1743244516724,0.00800064,1875.7,1875.6,3.76928515]
[1743244518723,1.07478064,1875.7,1875.5,1.06687]
[1743244518934,2.161,1875.6,1875.4,0.83056981]
[1743244519122,1.4187,1875.5,1875.2,4.47553483]
[1743244519425,1.067,1875.3,1875.2,3.2078]
[1743244519726,1.06699,1875.4,1875.2,4.79420927]
[1743244520025,1.4187,1875.3,1875.2,4.27486]
[1743244520228,2.1502,1875.3,1875.2,4.79399614]
[1743244522222,2.1502,1875.3,1875.2,3.72680972]
[1743244522531,2.1502,1875.3,1875.2,4.79386972]
[1743244522736,2.1502,1875.3,1875.2,6.26216972]
[1743244523030,3.2172,1875.3,1875.2,5.19510972]
[1743244523833,3.2172,1875.3,1875.2,3.72680972]
[1743244524036,2.1502,1875.3,1875.2,3.72680972]
[1743244524331,2.1502,1875.3,1875.2,3.72679399]
[1743244524520,2.1502,1875.3,1875.2,5.09139399]
[1743244524725,2.1502,1875.3,1875.2,6.15845399]
[1743244525232,3.2172,1875.3,1875.2,5.09139399]
[1743244525833,2.1502,1875.3,1875.2,5.09139399]
[1743244526036,3.2172,1875.3,1875.2,5.09139399]
[1743244526225,3.2172,1875.3,1875.2,4.5724]
[1743244526426,3.2172,1875.3,1875.2,5.09154353]
[1743244526636,3.2172,1875.3,1875.2,1.3646]
[1743244526823,1.06709,1875.2,1875.0,4.27495]
[1743244527026,1.3789,1875.1,1875.0,1.06715]
[1743244527333,1.3789,1875.1,1875.0,2.98593201]
[1743244527540,1.3789,1875.1,1875.0,7.02472841]
[1743244527738,0.7315,1875.3,1875.2,1.06706]
[1743244527939,2.1104,1875.3,1875.2,1.58634201]
[1743244528941,0.00800064,1875.7,1875.6,1.06683]
[1743244529234,3.2078,1876.3,1876.1,1.06652]
[1743244529440,3.2078,1876.3,1876.2,1.3995]
[1743244529734,3.2078,1876.3,1876.2,2.46599]
[1743244529929,2.4452,1876.6,1876.3,1.06643]
[1743244530128,1.06632,1876.5,1876.4,1.4114]
[1743244530339,2.40112,1876.5,1876.4,1.4114]
[1743244531135,1.3348,1876.5,1876.4,1.4114]
[1743244531435,1.3348,1876.5,1876.4,2.47778]
[1743244531634,1.3348,1876.5,1876.4,1.4114]
[1743244532132,2.40112,1876.5,1876.4,1.4114]
[1743244532332,4.5426,1876.5,1876.1,1.07453064]
[1743244532539,2.4012,1876.4,1876.2,3.01617985]
[1743244532841,1.3348,1876.3,1876.2,2.47788]
[1743244533036,1.3348,1876.3,1876.2,1.60476073]
[1743244533629,0.00800064,1876.6,1876.4,1.06635]
[1743244533832,1.36440064,1876.6,1876.2,3.2078]
[1743244534137,2.43067064,1876.6,1876.3,1.06639]
[1743244534726,1.0664,1876.4,1876.2,4.27426]
[1743244534939,2.42283,1876.3,1876.2,3.2078]
[1743244535135,1.06649,1876.2,1876.1,0.00800064]
[1743244535441,3.14699,1876.2,1876.1,0.00800064]
[1743244535644,1.3564,1876.2,1876.1,1.07455064]
[1743244536545,4.3901,1876.5,1876.1,3.75339871]
[1743244536745,1.3366,1876.4,1876.2,1.06644]
[1743244536940,1.3366,1876.4,1876.3,1.06643]
[1743244538151,1.3366,1876.4,1876.2,1.79925]
[1743244538446,1.3366,1876.4,1876.3,1.06643]
[1743244539242,0.7241,1876.5,1876.3,1.06643]
[1743244539442,1.07431064,1876.6,1876.4,1.06638]
[1743244539643,2.53921064,1876.6,1876.4,1.06638]
[1743244540342,1.06632,1876.5,1876.3,4.27419]
[1743244540547,2.53122,1876.5,1876.4,1.06638]
[1743244540747,1.4649,1876.5,1876.4,1.06638]
[1743244540949,2.53127,1876.5,1876.3,4.27423]
[1743244541252,4.6727,1876.5,1876.1,3.21580064]
[1743244541449,1.06649,1876.2,1876.1,0.00800064]
[1743244541751,1.06645,1876.3,1876.1,1.07452064]
[1743244541942,2.53135,1876.3,1876.1,1.07452064]
[1743244542344,1.4233,1876.2,1876.1,1.07452064]
[1743244544854,2.42352,1876.4,1876.1,1.07452064]
[1743244545047,1.4233,1876.3,1876.2,1.3669]
[1743244545246,1.4233,1876.3,1876.2,2.43339]
[1743244545448,7.94610064,1876.6,1876.4,1.06636]
[1743244545752,4.73830064,1876.6,1876.5,1.3938]
[1743244545953,1.06636,1876.5,1876.3,1.77262]
[1743244546155,1.06636,1876.5,1876.4,1.3938]
[1743244546848,1.81576,1876.5,1876.4,1.3938]
[1743244548544,1.0664,1876.4,1876.2,1.06646]
[1743244548741,1.0664,1876.4,1876.3,2.45683]
[1743244549144,0.7494,1876.5,1876.4,1.06638]
[1743244549351,0.7494,1876.5,1876.4,2.45678]
[1743244549551,1.81572,1876.5,1876.4,1.3904]
[1743244552760,4.73829064,1876.6,1876.4,2.45678]
[1743244553056,1.06632,1876.5,1876.4,1.3904]
[1743244553658,1.06643,1876.3,1876.2,0.53838227]
[1743244553853,1.06643,1876.3,1876.2,1.4336]
[1743244554054,1.06649,1876.2,1876.1,0.00800064]
[1743244554260,2.46129,1876.2,1876.1,0.00800064]
[1743244556355,1.06672,1875.8,1875.7,3.2078]
[1743244556566,1.06672,1875.8,1875.7,0.53979728]
[1743244556765,1.06672,1875.8,1875.6,1.4165]
[1743244556967,2.45662,1875.8,1875.6,2.48331]
[1743244557167,2.45662,1875.8,1875.7,0.54047583]
[1743244557365,2.45662,1875.8,1875.7,1.90167583]
[1743244557974,1.3899,1875.8,1875.7,1.90167583]
[1743244558176,2.45662,1875.8,1875.7,2.76719937]
[1743244558482,2.45662,1875.8,1875.7,1.90167583]
[1743244558779,3.663,1876.0,1875.7,2.76718005]
[1743244558982,4.72966,1876.0,1875.8,2.76718005]
[1743244559185,4.72966,1876.0,1875.9,1.90167583]
[1743244559983,4.7296,1876.0,1875.9,1.90201472]
[1743244560482,4.7296,1876.0,1875.9,1.90196077]
[1743244561185,1.0666,1876.0,1875.9,1.90196077]
[1743244562087,4.95568,1876.1,1875.9,2.96861077]
[1743244562288,4.95568,1876.1,1876.0,2.98948758]
[1743244562289,0.6813,1876.1,1876.0,2.98948758]
[1743244562488,1.74785,1876.1,1876.0,1.92288758]
[1743244562689,0.6813,1876.1,1876.0,1.92288758]
[1743244562884,1.74785,1876.1,1876.0,1.92288758]
[1743244563990,1.74785,1876.1,1876.0,1.3819]
[1743244564384,3.13705,1876.1,1876.0,1.3819]
[1743244565292,1.06668,1875.9,1875.7,1.4823]
[1743244565492,1.06668,1875.9,1875.8,2.77883429]
[1743244565882,1.06668,1875.9,1875.8,3.84555429]
[1743244566184,2.45584,1876.0,1875.8,3.84555429]
[1743244566492,2.45584,1876.0,1875.9,1.98462088]
[1743244567891,2.45584,1876.0,1875.9,1.98458552]
[1743244568186,0.6813,1876.1,1876.0,1.0666]
[1743244568187,1.74788,1876.1,1876.0,1.0666]
[1743244568382,1.74788,1876.1,1876.0,3.05118552]
[1743244568383,0.6813,1876.1,1876.0,3.05118552]
[1743244568984,1.74785,1876.1,1876.0,3.05118552]
[1743244569284,0.6813,1876.1,1876.0,3.05118552]
[1743244569481,3.2078,1876.3,1876.2,1.06649]
[1743244569692,3.2078,1876.3,1876.2,1.60759778]
[1743244569990,3.2078,1876.3,1876.2,0.54081955]
[1743244569991,4.27423,1876.3,1876.2,0.54081955]
[1743244570177,5.61703,1876.3,1876.2,1.96571955]
[1743244570681,3.2078,1876.3,1876.2,3.03220955]
[1743244571089,4.27423,1876.3,1876.2,1.96571955]
[1743244571283,4.5506,1876.3,1876.2,3.03220955]
[1743244571684,5.61703,1876.3,1876.2,1.96571955]
[1743244571891,2.40923,1876.3,1876.2,2.49139]
[1743244572093,2.40923,1876.3,1876.2,3.03197691]
[1743244572894,2.40923,1876.3,1876.2,1.96548691]
[1743244573090,2.40923,1876.3,1876.2,3.03197691]
[1743244573281,2.40923,1876.3,1876.2,1.96548691]
[1743244573691,1.3428,1876.3,1876.2,3.03197691]
[1743244574097,1.3428,1876.3,1876.2,3.03202675]
[1743244574497,2.40923,1876.3,1876.2,1.96553675]
[1743244574789,2.40923,1876.3,1876.2,3.03202675]
[1743244574994,1.3428,1876.3,1876.2,3.03202675]
[1743244575796,1.3428,1876.3,1876.2,3.89666211]
[1743244575996,1.3428,1876.3,1876.2,3.89642163]
[1743244576796,4.72838,1876.4,1876.3,1.06643]
[1743244576987,6.14538,1876.4,1876.3,2.96162678]
[1743244577188,6.14538,1876.4,1876.3,1.89519678]
[1743244577796,2.48338,1876.4,1876.3,1.89519678]
[1743244578898,2.48338,1876.4,1876.3,2.96162678]
[1743244579498,2.48338,1876.4,1876.3,1.89519678]
[1743244580189,1.417,1876.4,1876.3,2.96162678]
[1743244580490,2.48338,1876.4,1876.3,1.89519678]
[1743244581195,3.21580064,1876.6,1876.3,2.96162678]
[1743244581493,2.48522,1876.5,1876.4,1.3715]
[1743244583796,1.4189,1876.5,1876.4,2.97839982]
[1743244583994,3.92820064,1876.6,1876.4,2.97839982]
[1743244584188,1.06632,1876.5,1876.4,1.06638]
[1743244584384,0.00800064,1876.6,1876.5,1.06632]
[1743244584590,0.00800064,1876.6,1876.5,3.90959447]
[1743244585397,6.17485,1876.9,1876.5,7.11739447]
[1743244585398,1.4487,1876.9,1876.5,7.11739447]
[1743244585586,1.06607,1877.0,1876.8,1.06611]
[1743244585794,2.42247,1877.0,1876.8,1.06611]
[1743244586693,1.3564,1876.9,1876.8,1.06611]
[1743244586894,1.3564,1876.9,1876.8,1.60556826]
[1743244587997,1.3564,1876.9,1876.8,1.06611]
[1743244588499,1.3564,1876.9,1876.7,0.00800064]
[1743244588500,1.06615,1876.8,1876.7,0.00800064]
[1743244588896,2.42254,1876.9,1876.7,1.07421064]
[1743244589294,1.4595,1876.8,1876.7,1.07421064]
[1743244589693,1.4595,1876.8,1876.7,1.61350893]
[1743244590101,1.4595,1876.8,1876.7,1.07421064]
[1743244590297,1.4595,1876.8,1876.7,1.61351923]
[1743244590498,1.06607,1877.0,1876.8,1.06613]
[1743244590698,2.52557,1877.0,1876.8,1.06613]
[1743244590899,1.4595,1877.0,1876.9,1.06609]
[1743244591100,2.52554,1877.0,1876.8,1.0661]
[1743244592295,2.52554,1877.0,1876.7,3.21580064]
[1743244592496,2.52554,1877.0,1876.8,1.06615]
[1743244592701,2.52554,1877.0,1876.7,3.21580064]
[1743244592895,2.52554,1877.0,1876.9,1.06609]
[1743244592896,1.4595,1877.0,1876.9,1.06609]
[1743244593304,1.4595,1877.0,1876.9,1.60494695]
[1743244594106,1.41130064,1877.1,1877.0,1.06604]
[1743244594496,0.00800064,1877.1,1877.0,1.06604]
[1743244594899,0.00800064,1877.1,1877.0,2.48194]
[1743244596199,2.41578064,1877.1,1877.0,1.4159]
[1743244596505,1.34980064,1877.1,1877.0,2.48194]
[1743244596908,2.08160064,1877.1,1877.0,2.48194]
[1743244599011,0.00800064,1877.1,1877.0,2.48194]
[1743244600512,1.46450064,1877.1,1877.0,2.48194]
[1743244600903,2.53048064,1877.1,1877.0,2.48194]
[1743244601104,1.46450064,1877.1,1877.0,2.48194]
[1743244605112,2.53048064,1877.1,1877.0,1.4159]
[1743244605308,1.06615,1876.8,1876.7,0.00800064]
[1743244606310,2.48655,1876.8,1876.7,0.00800064]
[1743244607917,6.14255,1876.8,1876.7,0.00800064]
[1743244612324,6.14255,1876.8,1876.5,3.2078]
[1743244612325,1.06626,1876.6,1876.5,3.2078]
[1743244612517,1.06626,1876.6,1876.5,3.7479227]
[1743244612723,1.06626,1876.6,1876.5,3.2078]
[1743244612924,2.47966,1876.6,1876.5,3.2078]
[1743244614519,2.47966,1876.6,1876.5,3.74811917]
[1743244614822,2.47966,1876.6,1876.4,2.49756064]
[1743244615027,1.06632,1876.5,1876.4,1.43120064]
[1743244615213,8.47802,1876.5,1875.9,1.72901956]
[1743244615416,1.06655,1876.1,1876.0,1.40496375]
[1743244615719,1.06655,1876.1,1876.0,0.54037067]
[1743244616127,3.22275,1876.1,1876.0,1.99887067]
[1743244617118,3.93395,1876.1,1876.0,1.99887067]
[1743244617315,3.93395,1876.1,1876.0,1.4585]
[1743244617925,1.06672,1875.8,1875.7,1.4387]
[1743244618225,6.87080064,1875.9,1875.3,1.26768483]
[1743244618420,1.06687,1875.6,1875.4,1.60251089]
[1743244618623,1.778,1875.7,1875.5,1.06689]
[1743244618830,1.778,1875.7,1875.4,1.06691]
[1743244619323,1.4339,1875.6,1875.5,1.3686]
[1743244619520,2.50073,1875.6,1875.5,1.3686]
[1743244620118,3.19043,1875.6,1875.5,1.3686]
[1743244622727,1.06698,1875.4,1875.2,3.2078]
[1743244622924,1.06698,1875.4,1875.2,4.27486]
[1743244624219,1.06706,1875.2,1875.1,0.7297]
[1743244624420,1.06719,1875.0,1874.8,1.76366]
[1743244624619,1.06719,1875.0,1874.8,0.6964]
[1743244624823,0.7317,1875.1,1874.8,0.6964]
[1743244624824,1.06723,1874.9,1874.8,0.6964]
[1743244625024,0.7317,1875.1,1874.7,3.9241]
[1743244625025,3.656,1875.0,1874.7,0.7163]
[1743244625217,4.27512,1874.8,1874.5,1.76384]
[1743244625422,1.06734,1874.7,1874.6,1.4046]
[1743244626223,3.656,1874.7,1874.3,3.2078]
[1743244626433,2.1629,1874.6,1874.3,4.6124]
[1743244626734,1.06752,1874.4,1874.3,4.6124]
[1743244628740,1.06752,1874.4,1874.3,3.2078]
[1743244629132,4.72352,1874.4,1874.3,3.2078]
[1743244629734,1.06763,1874.2,1874.1,1.3364]
[1743244630335,2.51083,1874.2,1874.1,1.3364]
[1743244631225,2.51083,1874.2,1873.9,3.2078]
[1743244631226,1.06774,1874.0,1873.9,3.2078]
[1743244631426,4.72474,1874.0,1873.9,3.2078]
[1743244631733,6.8648,1874.0,1873.6,1.4117]
[1743244631927,1.06788,1873.8,1873.6,1.4117]
[1743244632525,1.4432,1873.9,1873.6,2.47965]
[1743244632925,1.4432,1873.9,1873.7,2.47958]
[1743244633123,2.51101,1873.9,1873.7,2.47958]
[1743244633324,2.51102,1873.9,1873.7,1.4117]
[1743244633828,1.06786,1873.8,1873.7,1.4117]
[1743244634030,1.06814,1873.3,1873.2,3.909]
[1743244634230,1.06824,1873.2,1872.9,4.95343]
[1743244634730,1.07624064,1873.2,1872.9,4.95343]
[1743244634933,0.00800064,1873.2,1872.9,4.95343]
[1743244635124,1.07623064,1873.2,1872.9,4.95343]
[1743244635325,2.51023064,1873.2,1873.0,2.48931]
[1743244635622,2.51023064,1873.2,1873.0,1.421]
[1743244635823,1.06826,1873.1,1873.0,1.421]
[1743244636029,2.50226,1873.1,1873.0,1.421]
[1743244639231,1.06837,1872.9,1872.8,3.2078]
[1743244640431,3.659,1873.0,1872.8,3.2078]
[1743244640630,0.00800064,1873.2,1872.8,3.2078]
[1743244640832,0.00800064,1873.2,1873.1,1.06826]
[1743244641235,0.00800064,1873.2,1873.1,3.87806]
[1743244643040,1.07620064,1873.2,1873.1,2.8098]
[1743244643438,1.07620064,1873.2,1873.1,1.4114]
[1743244643630,1.06837,1872.9,1872.8,4.27623]
[1743244643835,1.4381,1873.1,1872.9,1.06834]
[1743244644038,1.4381,1873.1,1872.8,3.2078]
[1743244644039,1.06834,1873.0,1872.8,4.2762]
[1743244644943,1.06834,1873.0,1872.9,1.349]
[1743244645138,1.06826,1873.1,1872.9,2.41733]
[1743244645437,1.06831,1873.0,1872.9,1.349]
[1743244645634,2.49791,1873.0,1872.9,1.349]
[1743244645831,1.4296,1873.0,1872.9,2.41737]
[1743244646035,1.0683,1873.1,1872.9,2.41737]
[1743244646233,5.81800064,1873.2,1872.9,1.349]
[1743244646432,1.06831,1873.0,1872.9,1.349]
[1743244646638,1.06828,1873.1,1872.9,2.41735]
[1743244646838,1.06831,1873.0,1872.9,2.41735]
[1743244647034,1.06831,1873.0,1872.9,1.349]
[1743244647239,2.4979,1873.1,1872.9,2.41737]
[1743244647541,0.00800064,1873.2,1873.1,1.06826]
[1743244648035,1.07620064,1873.2,1873.0,0.683]
[1743244648342,1.07620064,1873.2,1873.1,1.3832]
[1743244651748,1.06831,1873.0,1872.9,3.2078]
[1743244651942,1.06831,1873.0,1872.9,3.74033048]
[1743244652343,1.06831,1873.0,1872.9,4.59332]
[1743244652743,1.06831,1873.0,1872.9,5.96162]
[1743244653245,1.06831,1873.0,1872.9,5.96227351]
[1743244653647,1.06831,1873.0,1872.9,5.96420391]
[1743244654644,1.4002,1873.1,1872.9,7.03253391]
[1743244654944,1.4002,1873.1,1873.0,3.84731391]
[1743244655141,1.07621064,1873.2,1873.0,3.84731391]
[1743244655342,1.07621064,1873.2,1873.1,2.77900391]
[1743244655543,1.07621064,1873.2,1873.1,2.78205101]
[1743244656344,0.00800064,1873.2,1873.1,2.78205101]
[1743244656646,3.66600064,1873.2,1873.1,3.85031101]
[1743244656847,3.66600064,1873.2,1873.1,4.52101101]
[1743244657239,4.73420064,1873.2,1873.1,3.45275101]
[1743244657651,4.73420064,1873.2,1873.1,2.78397114]
[1743244658153,1.06831,1873.0,1872.9,3.87112969]
[1743244658354,1.06831,1873.0,1872.9,5.26424116]
[1743244659250,1.06831,1873.0,1872.9,6.69264116]
[1743244659638,1.06831,1873.0,1872.9,6.69610349]
[1743244660547,1.06831,1873.0,1872.3,1.60989295]
[1743244660548,1.06858,1872.6,1872.3,1.60989295]
[1743244660843,1.06858,1872.6,1872.2,1.4284]
[1743244660844,7.93434,1872.6,1872.2,1.4284]
[1743244661049,6.8658,1872.6,1872.4,1.06861]
[1743244661252,6.8658,1872.6,1872.5,1.4576]
[1743244661649,6.8658,1872.6,1872.5,2.5262]
[1743244662351,6.8658,1872.6,1872.5,1.4576]
[1743244662549,7.93434,1872.6,1872.5,1.4576]
[1743244662758,1.06863,1872.5,1872.3,1.75139]
[1743244663050,2.53283,1872.5,1872.3,2.1403]
[1743244663252,2.53283,1872.5,1872.4,1.4576]
[1743244663454,1.4642,1872.5,1872.4,1.4576]
[1743244663650,6.8658,1872.6,1872.5,1.0686]
[1743244663952,6.8658,1872.6,1872.4,1.4576]
[1743244664140,7.93436,1872.6,1872.4,2.52622]
[1743244664339,1.0686,1872.5,1872.4,1.4576]
[1743244664553,3.1482,1872.5,1872.4,1.4576]
[1743244664952,2.0796,1872.5,1872.4,2.52626]
[1743244665250,3.2078,1872.6,1872.5,1.0686]
[1743244665547,3.2078,1872.6,1872.5,1.4562]
[1743244665859,3.2078,1872.6,1872.5,2.5248]
[1743244666353,4.9991,1872.7,1872.6,1.06854]
[1743244666556,6.06758,1872.7,1872.6,1.4562]
[1743244668155,4.9991,1872.7,1872.6,2.52474]
[1743244669362,3.658,1872.7,1872.6,2.52474]
[1743244669559,4.72648,1872.7,1872.6,1.4562]
[1743244669749,6.20598,1872.7,1872.6,1.4562]
[1743244669950,1.06856,1872.6,1872.3,1.3654]
[1743244670152,1.0686,1872.5,1872.4,1.3881]
[1743244670352,0.7253,1872.5,1872.4,1.3881]
[1743244670553,2.1359,1872.5,1872.4,1.3881]
[1743244670758,3.2045,1872.5,1872.4,1.3881]
[1743244671152,2.1359,1872.5,1872.4,2.45676]
[1743244671551,0.7253,1872.5,1872.4,2.45676]
[1743244672158,5.3141,1872.6,1872.4,1.3881]
[1743244672358,6.38264,1872.6,1872.5,1.3881]
[1743244673262,1.06866,1872.4,1872.3,0.6827]
[1743244673460,1.06866,1872.4,1872.2,1.06874]
[1743244673660,1.06866,1872.4,1872.3,1.3765]
[1743244673861,1.78616,1872.4,1872.3,1.3765]
[1743244674063,4.97207,1872.6,1872.4,1.06864]
[1743244674361,3.9035,1872.6,1872.5,1.3765]
[1743244674562,4.97204,1872.6,1872.5,2.4451]
[1743244674756,4.97204,1872.6,1872.5,1.3765]
[1743244675362,3.2078,1872.6,1872.5,2.4451]
[1743244676863,3.657,1872.7,1872.6,1.06854]
[1743244677059,3.657,1872.7,1872.6,2.45724]
[1743244677260,6.8648,1872.8,1872.7,1.06848]
[1743244677561,49.355,1872.9,1872.8,1.06843]
[1743244677757,3.2078,1873.1,1873.0,1.06831]
[1743244678163,4.27606,1873.1,1872.9,2.45703]
[1743244678358,1.06831,1873.0,1872.9,1.3887]
[1743244679261,5.66059,1873.1,1872.9,2.45706]
[1743244679761,5.66059,1873.1,1873.0,1.3854]
[1743244680357,5.66056,1873.1,1873.0,1.3854]
[1743244680656,4.5923,1873.1,1873.0,2.45371]
[1743244680863,5.66056,1873.1,1873.0,1.3854]
[1743244681060,4.5923,1873.1,1873.0,2.45371]
[1743244681758,3.2078,1873.1,1873.0,2.45371]
[1743244681957,0.00800064,1873.2,1873.1,1.06826]
[1743244682159,0.00800064,1873.2,1873.1,2.44396]
[1743244685959,49.359,1873.6,1873.2,2.6705]
[1743244686267,53.015,1873.6,1873.5,1.06803]
[1743244686468,54.4781,1873.6,1873.5,1.06803]
[1743244688158,54.4781,1873.6,1873.4,1.41190064]
[1743244688462,2.45593,1873.5,1873.4,1.41190064]
[1743244688868,53.015,1873.6,1873.5,1.06803]
[1743244689063,54.08299,1873.6,1873.4,2.47994064]
[1743244689264,1.3879,1873.5,1873.4,2.47994064]
[1743244689471,1.3879,1873.5,1873.4,1.07604064]
[1743244690564,2.45593,1873.5,1873.4,0.00800064]
[1743244690861,7.0957,1873.5,1872.7,5.87898]
[1743244691059,1.06818,1873.3,1873.1,1.06824]
[1743244691266,2.8208,1873.4,1873.3,1.06814]
[1743244691468,56.2218,1873.6,1873.5,1.06803]
[1743244691661,58.75697,1873.6,1873.4,1.06805]
[1743244691856,1.4672,1873.5,1873.4,1.06805]
[1743244693066,57.689,1873.6,1873.5,1.06803]
[1743244693266,54.034,1873.6,1873.5,1.06803]
[1743244697070,55.10197,1873.6,1873.4,1.06804]
[1743244697272,4.675,1873.6,1873.5,1.06803]
[1743244700279,0.00800064,1873.7,1873.6,1.06797]
[1743244703574,0.00800064,1873.7,1873.6,2.45977]
[1743244704482,3.2078,1874.0,1873.6,2.45977]
[1743244704680,4.6710438,1874.0,1873.9,1.0678]
[1743244705580,49.34,1874.2,1874.1,1.06769]
[1743244705780,1.4797,1874.2,1874.1,1.06769]
[1743244705978,1.41140064,1874.3,1874.2,1.06763]
[1743244706275,1.48770064,1874.3,1874.2,1.06763]
[1743244706580,0.00800064,1874.3,1874.2,1.06763]
[1743244706786,0.00800064,1874.3,1874.2,2.47933]
[1743244707975,0.00800064,1874.3,1874.1,3.2078]
[1743244707976,0.00800064,1874.3,1874.1,1.06767]
[1743244708177,3.2078,1874.2,1874.0,1.06772]
[1743244708476,1.4475,1874.1,1874.0,1.06772]
[1743244714179,4.34700064,1874.3,1874.2,1.06763]
[1743244714380,5.76190064,1874.3,1874.2,1.06763]
[1743244716387,2.10990064,1874.3,1874.2,1.06763]
[1743244716683,3.17747064,1874.3,1874.2,1.06763]
[1743244716885,2.10990064,1874.3,1874.2,1.06763]
[1743244718081,3.17747064,1874.3,1874.1,1.06765]
[1743244718280,1.76257064,1874.3,1874.2,1.4522]
[1743244718476,1.76257064,1874.3,1873.8,7.36347064]
[1743244718681,1.06763,1874.2,1874.1,1.06764]
[1743244718880,0.69500064,1874.3,1874.1,1.06764]
[1743244719087,1.76259064,1874.3,1874.1,1.06764]
[1743244719289,3.2078,1874.2,1874.0,1.06772]
[1743244719588,3.2078,1874.2,1873.9,1.382]
[1743244719981,4.27548,1874.2,1874.0,1.06772]
[1743244720180,1.06769,1874.1,1874.0,1.06772]
[1743244720382,4.27546,1874.2,1874.0,1.06772]
[1743244723191,1.06766,1874.2,1874.0,1.06772]
[1743244723391,4.27546,1874.2,1874.1,1.06769]
[1743244723592,3.2078,1874.2,1874.1,1.06769]
[1743244723795,0.69500064,1874.3,1874.2,1.06763]
[1743244724483,0.00800064,1874.3,1874.2,1.06763]
[1743244724686,3.2078,1874.5,1874.4,1.06752]
[1743244726289,0.00800064,1874.6,1874.3,1.4361]
[1743244726290,0.00800064,1874.6,1874.5,1.06746]
[1743244727387,0.00800064,1874.6,1874.3,1.4361]
[1743244727592,4.27532,1874.4,1874.3,1.4361]
[1743244727791,3.2078,1874.4,1874.3,2.50367]
[1743244728295,3.649,1874.5,1874.4,1.06752]
[1743244730595,4.71649,1874.5,1874.3,2.50363]
[1743244730796,3.649,1874.5,1874.4,1.06752]
[1743244731095,3.649,1874.5,1874.4,2.50582]
[1743244732097,3.21580064,1874.6,1874.5,1.06746]
[1743244732395,0.00800064,1874.6,1874.5,2.50576]
[1743244732789,1.07540064,1874.6,1874.5,1.4383]
[1743244732995,4.28320064,1874.6,1874.5,1.4383]
[1743244733298,4.28320064,1874.6,1874.5,2.50576]
[1743244733694,4.28320064,1874.6,1874.5,1.4383]
[1743244734094,4.28320064,1874.6,1874.5,2.50576]
[1743244734399,3.21580064,1874.6,1874.5,2.50576]
[1743244734696,4.59380064,1874.6,1874.5,2.50576]
[1743244735690,1.38600064,1874.6,1874.5,2.50576]
[1743244735893,0.00800064,1874.6,1874.5,2.50576]
[1743244738405,1.06752,1874.4,1874.2,1.06758]
[1743244738593,1.0675,1874.5,1874.3,2.53767]
[1743244738793,1.0675,1874.5,1874.4,1.4701]
[1743244738994,1.0675,1874.5,1874.4,2.53762]
[1743244739589,1.0675,1874.5,1874.4,1.4701]
[1743244740499,1.06752,1874.4,1874.3,1.06754]
[1743244740702,1.79082,1874.4,1874.3,1.06754]
[1743244741198,0.7233,1874.4,1874.3,1.06754]
[1743244741999,1.79082,1874.4,1874.3,1.06754]
[1743244742294,0.7233,1874.4,1874.3,1.06754]
[1743244742499,1.79082,1874.4,1874.3,1.06754]
[1743244742699,1.79082,1874.4,1874.3,1.06757]
[1743244743404,0.7233,1874.4,1874.3,1.06757]
[1743244744001,3.21580064,1874.6,1874.1,4.6533]
[1743244744197,1.07544064,1874.6,1874.4,1.06749]
[1743244744394,1.76434064,1874.6,1874.4,1.06749]
[1743244744594,1.76434064,1874.6,1874.5,1.4722]
[1743244744793,4.97214064,1874.6,1874.5,1.4722]
[1743244745496,3.90470064,1874.6,1874.3,1.06753]
[1743244745703,1.06749,1874.5,1874.3,1.06753]
[1743244746000,1.06749,1874.5,1874.4,1.4193]
[1743244746204,1.06754,1874.4,1874.2,1.06759]
[1743244746495,3.90470064,1874.6,1874.2,1.4193]
[1743244746701,3.90470064,1874.6,1874.5,1.06746]
[1743244746887,3.21580064,1874.6,1874.5,1.06746]
[1743244747598,3.21580064,1874.6,1874.5,2.48676]
[1743244749600,0.00800064,1874.6,1874.5,2.48676]
[1743244749798,3.2078,1874.8,1874.7,1.06734]
[1743244750395,3.2078,1874.8,1874.7,2.54374]
[1743244752500,4.27509,1874.8,1874.7,1.4764]
[1743244752707,4.98689,1874.8,1874.7,1.4764]
[1743244752899,4.98692,1874.8,1874.6,1.06739]
[1743244753104,1.75397,1874.7,1874.5,2.48814]
[1743244753307,1.75397,1874.7,1874.6,1.4207]
[1743244754700,3.9196,1874.8,1874.6,1.4207]
[1743244754701,3.2078,1874.8,1874.6,1.4207]
[1743244754900,3.2078,1874.8,1874.6,2.0958]
[1743244755100,3.2078,1874.8,1874.7,1.06734]
[1743244755411,3.2078,1874.8,1874.7,2.48634]
[1743244756611,0.00800064,1874.9,1874.8,1.06729]
[1743244756811,0.00800064,1874.9,1874.8,3.16429]